fUST/lending_fUST_20241130
["ID","MTS","AMOUNT","RATE_DAILY","PERIOD"]
[343740357,1732955151995,-307.01230032,0.00023049,2]
[343740358,1732955152016,-200.49545282,0.00023049,2]
[343740359,1732955152035,-537.39109455,0.00023049,2]
[343740360,1732955152058,-8951.6514041,0.00023051,2]
[343740361,1732955152079,-275.528755,0.00023051,2]
[343740362,1732955152100,-645.64832132,0.00023073,2]
[343740363,1732955152120,-333.88714235,0.00023073,2]
[343740364,1732955152141,-1053.8595683,0.00023194,2]
[343740365,1732955152162,-166.647498,0.00023435,2]
[343740366,1732955152186,-346.7331274,0.00023511,2]
[343740367,1732955152207,-420.0,0.00024009,2]
[343740368,1732955152227,-158.0,0.00024164,2]
[343740369,1732955152249,-506.14,0.00024408,3]
[343740370,1732955152270,-195.24752935,0.00024853,2]
[343740371,1732955152291,-302.66710251,0.00025,2]
[343740372,1732955152311,-302.66710251,0.0002525,2]
[343740373,1732955152332,-302.66710251,0.000255,2]
[343740374,1732955152352,-302.66710251,0.0002575,2]
[343740375,1732955152373,-5000.0,0.00025929,2]
[343740376,1732955152395,-5000.0,0.00025929,2]
[343740377,1732955152417,-5000.0,0.00025929,2]
[343740378,1732955152440,-5000.0,0.0002593,2]
[343740379,1732955152461,-302.66710251,0.00026,2]
[343740380,1732955152487,-454.00065376,0.0002625,4]
[343740381,1732955152507,-587.0,0.00026409,2]
[343740382,1732955152528,-309.09439397,0.000265,4]
[343740383,1732955152550,-500.0,0.00026566,7]
[343740384,1732955152574,-1614.924,0.00026623,2]
[343740385,1732955152596,-250.0,0.00026934,2]
[343740386,1732955152617,-237.49,0.00027488,10]
[343740387,1732955152639,-5000.0,0.00027498,2]
[343740388,1732955152659,-500.0,0.00027499,2]
[343740389,1732955152679,-5000.0,0.00027697,2]
[343740390,1732955152700,-1847.25,0.000277,2]
[343740391,1732955152720,-212.8417378,0.00028082,30]
[343740392,1732955152739,-617.0,0.000282,2]
[343740393,1732955152760,-500.0,0.0002821,7]
[343740394,1732955152780,-288.681,0.00028456,2]
[343740395,1732955152799,-331.58602824,0.000285,2]
[343740396,1732955152819,-331.58602823,0.00028542,2]
[343740397,1732955152838,-315.81594366,0.00028573,5]
[343740398,1732955152858,-331.58602823,0.00028584,2]
[343740399,1732955152878,-181.44797077,0.00028599,2]
[343740400,1732955152901,-35133.83070523,0.000286,2]
[343740401,1732955212091,-264.49798167,0.0002,2]
[343740402,1732955225315,-904.77285166,0.0002,2]
[343740403,1732955225338,-250.0,0.00026843,2]
[343740404,1732955225378,-370.8,0.0002859,10]
[343740405,1732955225404,-309.0,0.0002859,10]
[343740406,1732955225426,-300.0,0.00028598,2]
[343740407,1732955225448,-181.44797076,0.00028599,2]
[343740408,1732955225636,-500.0,0.00028599,2]
[343740409,1732955225661,-226.17376618,0.00028599,2]
[343740410,1732955225683,-214.90861022,0.00028599,2]
[343740411,1732955225705,-500.0,0.00028599,2]
[343740412,1732955225725,-164.14633136,0.00028599,2]
[343740413,1732955225750,-479.848636,0.00028599,2]
[343740414,1732955225770,-66107.66378982,0.000286,2]
[343740415,1732955230096,-51667.82565317,0.000286,2]
[343740416,1732955230121,-303.36,0.000286,31]
[343740417,1732955230142,-303.36,0.000286,31]
[343740418,1732955230164,-303.36,0.000286,31]
[343740419,1732955230187,-303.36,0.000286,31]
[343740420,1732955230210,-303.36,0.000286,31]
[343740421,1732955230233,-303.36,0.000286,31]
[343740422,1732955230257,-303.36,0.000286,31]
[343740423,1732955230279,-303.36,0.000286,31]
[343740424,1732955230302,-303.36,0.000286,31]
[343740425,1732955230324,-303.36,0.000286,31]
[343740426,1732955230346,-303.36,0.000286,31]
[343740427,1732955230368,-303.36,0.000286,31]
[343740428,1732955230388,-331.58602823,0.00028625,2]
[343740429,1732955230409,-152.20052548,0.00028643,2]
[343740430,1732955230429,-331.58602823,0.00028667,2]
[343740431,1732955230450,-1632.6717273,0.00028667,2]
[343740432,1732955230470,-500.0,0.00028673,5]
[343740433,1732955230492,-500.0,0.00028673,5]
[343740434,1732955230518,-20303.99797064,0.000287,30]
[343740436,1732955244079,-1169.27083333,0.0002,2]
[343740437,1732955244100,-257.5,0.0002859,10]
[343740438,1732955244122,-214.59,0.0002869,10]
[343740439,1732955244144,-14632.49250491,0.000287,30]
[343740466,1732955357081,-1169.27083333,0.0002,2]
[343740472,1732955376183,1169.27083333,0.0002,2]
[343740517,1732955432184,-300.0,0.00024999,2]
[343740519,1732955432194,-300.0,0.00024999,2]
[343740522,1732955432204,-2537.91488703,0.00025,2]
[343740524,1732955432213,-158.0,0.00025,2]
[343740525,1732955432223,-1169.27083333,0.00025,2]
[343740527,1732955432233,-2414.81140102,0.00026,30]
[343740529,1732955432243,-5372.09936821,0.00027,10]
[343740531,1732955432254,-624.17575139,0.00027,10]
[343740532,1732955432264,-443.62455932,0.00027078,2]
[343740533,1732955432273,-420.0,0.00027082,2]
[343740534,1732955432283,-420.0,0.00027499,2]
[343740536,1732955432292,-267.7245816,0.00028,2]
[343740538,1732955432307,-1394.8054184,0.00028,2]
[343740539,1732955432316,-402.00436473,0.00028,10]
[343740540,1732955432325,-3492.13827114,0.00028,2]
[343740541,1732955432335,-1362.00296339,0.00028,7]
[343740542,1732955432344,-8133.85740929,0.000285,2]
[343740543,1732955432354,-270.34,0.000286,31]
[343740544,1732955432363,-270.34,0.000286,31]
[343740545,1732955432373,-270.34,0.000286,31]
[343740546,1732955432382,-270.34,0.000286,31]
[343740547,1732955432393,-270.34,0.000286,31]
[343740548,1732955432403,-270.34,0.000286,31]
[343740549,1732955432412,-270.34,0.000286,31]
[343740551,1732955432421,-270.34,0.000286,31]
[343740553,1732955432431,-270.34,0.000286,31]
[343740554,1732955432440,-270.34,0.000286,31]
[343740555,1732955432450,-270.34,0.000286,31]
[343740556,1732955432460,-270.34,0.000286,31]
[343740557,1732955432469,-1025.5723196,0.0002865,2]
[343740558,1732955432480,-508.32163633,0.00028699,2]
[343740559,1732955432489,-571.94767968,0.000287,2]
[343740560,1732955432499,-154138.01434266,0.000287,30]
[343740561,1732955432509,-152.199371,0.0002875,2]
[343740562,1732955432519,-231.051234,0.0002875,2]
[343740563,1732955432532,-1119.96876069,0.00028767,2]
[343740564,1732955432548,-158.482155,0.00028767,7]
[343740565,1732955432558,-158.482155,0.00028767,7]
[343740566,1732955432567,-158.482155,0.00028767,7]
[343740567,1732955432579,-158.482155,0.00028767,7]
[343740568,1732955432588,-158.482155,0.00028767,7]
[343740569,1732955432598,-158.482155,0.00028767,7]
[343740570,1732955432607,-158.482155,0.00028767,7]
[343740571,1732955432620,-158.482155,0.00028767,7]
[343740572,1732955432629,-158.482155,0.00028767,7]
[343740573,1732955432638,-158.482155,0.00028767,7]
[343740574,1732955432648,-158.482155,0.00028767,7]
[343740575,1732955432658,-158.482155,0.00028767,7]
[343740576,1732955432667,-158.482155,0.00028767,7]
[343740577,1732955432676,-158.482155,0.00028767,7]
[343740578,1732955432686,-158.482155,0.00028767,7]
[343740579,1732955432696,-158.482155,0.00028767,7]
[343740580,1732955432705,-158.482155,0.00028767,7]
[343740581,1732955432714,-158.482155,0.00028767,7]
[343740582,1732955432727,-158.482155,0.00028767,7]
[343740583,1732955432738,-158.482161,0.00028767,7]
[343740584,1732955432748,-151.0,0.00028767,7]
[343740585,1732955432757,-151.0,0.00028767,7]
[343740586,1732955432767,-151.0,0.00028767,7]
[343740587,1732955432777,-151.0,0.00028767,7]
[343740588,1732955432786,-151.0,0.00028767,7]
[343740589,1732955432795,-151.0,0.00028767,7]
[343740590,1732955432804,-151.0,0.00028767,7]
[343740591,1732955432813,-151.0,0.00028767,7]
[343740592,1732955432822,-151.0,0.00028767,7]
[343740593,1732955432832,-151.0,0.00028767,7]
[343740594,1732955432841,-151.0,0.00028767,7]
[343740595,1732955432851,-151.0,0.00028767,7]
[343740596,1732955432860,-172.256704,0.00028767,7]
[343740597,1732955432870,-154.177188,0.00028767,7]
[343740598,1732955432879,-154.177188,0.00028767,7]
[343740599,1732955432889,-154.177188,0.00028767,7]
[343740600,1732955432904,-154.177188,0.00028767,7]
[343740601,1732955432913,-154.177188,0.00028767,7]
[343740602,1732955432923,-154.177188,0.00028767,7]
[343740603,1732955432932,-154.177188,0.00028767,7]
[343740604,1732955432941,-154.177188,0.00028767,7]
[343740605,1732955432950,-154.177188,0.00028767,7]
[343740606,1732955432959,-154.177188,0.00028767,7]
[343740607,1732955432968,-154.177188,0.00028767,7]
[343740608,1732955432977,-154.177188,0.00028767,7]
[343740609,1732955432985,-154.177188,0.00028767,7]
[343740610,1732955432994,-154.177188,0.00028767,7]
[343740611,1732955433003,-154.177188,0.00028767,7]
[343740612,1732955433012,-154.177188,0.00028767,7]
[343740613,1732955433021,-154.177188,0.00028767,7]
[343740614,1732955433031,-154.177188,0.00028767,7]
[343740615,1732955433040,-154.177188,0.00028767,7]
[343740616,1732955433050,-154.177196,0.00028767,7]
[343740617,1732955433060,-151.0,0.00028767,7]
[343740618,1732955433069,-151.0,0.00028767,7]
[343740619,1732955433079,-151.0,0.00028767,7]
[343740620,1732955433089,-151.0,0.00028767,7]
[343740621,1732955433100,-151.0,0.00028767,7]
[343740622,1732955433109,-151.0,0.00028767,7]
[343740623,1732955433119,-151.0,0.00028767,7]
[343740624,1732955433129,-151.0,0.00028767,7]
[343740625,1732955433139,-151.0,0.00028767,7]
[343740626,1732955433153,-151.0,0.00028767,7]
[343740627,1732955433163,-151.0,0.00028767,7]
[343740628,1732955433172,-151.0,0.00028767,7]
[343740629,1732955433182,-151.0,0.00028767,7]
[343740630,1732955433192,-151.0,0.00028767,7]
[343740631,1732955433202,-151.0,0.00028767,7]
[343740632,1732955433212,-151.0,0.00028767,7]
[343740633,1732955433221,-151.0,0.00028767,7]
[343740634,1732955433231,-151.0,0.00028767,7]
[343740635,1732955433241,-254.902727,0.00028767,7]
[343740636,1732955433251,-182.846615,0.00028767,7]
[343740637,1732955433261,-151.0,0.00028767,7]
[343740638,1732955433271,-272.70152,0.00028767,7]
[343740639,1732955433281,-162.641354,0.00028767,7]
[343740640,1732955433291,-162.641354,0.00028767,7]
[343740641,1732955433300,-162.641354,0.00028767,7]
[343740642,1732955433310,-162.641354,0.00028767,7]
[343740643,1732955433320,-162.641354,0.00028767,7]
[343740644,1732955433329,-162.641354,0.00028767,7]
[343740645,1732955433339,-162.641354,0.00028767,7]
[343740646,1732955433349,-162.641354,0.00028767,7]
[343740647,1732955433359,-162.641354,0.00028767,7]
[343740648,1732955433369,-162.641354,0.00028767,7]
[343740649,1732955433379,-162.641354,0.00028767,7]
[343740650,1732955433388,-162.641354,0.00028767,7]
[343740651,1732955433399,-162.641354,0.00028767,7]
[343740652,1732955433408,-162.641354,0.00028767,7]
[343740653,1732955433417,-162.641354,0.00028767,7]
[343740654,1732955433427,-162.641354,0.00028767,7]
[343740655,1732955433436,-162.641354,0.00028767,7]
[343740656,1732955433445,-162.641354,0.00028767,7]
[343740657,1732955433455,-162.641354,0.00028767,7]
[343740658,1732955433464,-162.641362,0.00028767,7]
[343740659,1732955433474,-166.105949,0.00028767,7]
[343740660,1732955433483,-166.105949,0.00028767,7]
[343740661,1732955433493,-166.105949,0.00028767,7]
[343740662,1732955433503,-166.105949,0.00028767,7]
[343740663,1732955433514,-166.105949,0.00028767,7]
[343740664,1732955433525,-166.105949,0.00028767,7]
[343740665,1732955433538,-166.105949,0.00028767,7]
[343740666,1732955433547,-166.105949,0.00028767,7]
[343740667,1732955433556,-166.105949,0.00028767,7]
[343740668,1732955433565,-166.105949,0.00028767,7]
[343740669,1732955433576,-166.105949,0.00028767,7]
[343740670,1732955433585,-166.105949,0.00028767,7]
[343740671,1732955433595,-166.105949,0.00028767,7]
[343740672,1732955433605,-166.105949,0.00028767,7]
[343740673,1732955433615,-166.105949,0.00028767,7]
[343740674,1732955433624,-166.105949,0.00028767,7]
[343740675,1732955433634,-166.105949,0.00028767,7]
[343740676,1732955433645,-166.105949,0.00028767,7]
[343740677,1732955433655,-166.105949,0.00028767,7]
[343740678,1732955433664,-166.105944,0.00028767,7]
[343740679,1732955433674,-151.0,0.00028767,7]
[343740680,1732955433684,-151.0,0.00028767,7]
[343740681,1732955433694,-151.0,0.00028767,7]
[343740682,1732955433703,-239.065973,0.00028767,7]
[343740683,1732955433713,-168.66295499,0.00028767,3]
[343740684,1732955433723,-500.0,0.00028767,3]
[343740685,1732955433732,-341.37633447,0.00028767,3]
[343740686,1732955433741,-151.0,0.00028767,7]
[343740687,1732955433751,-151.0,0.00028767,7]
[343740688,1732955433760,-151.0,0.00028767,7]
[343740689,1732955433770,-575.93464198,0.00028767,3]
[343740690,1732955433779,-500.0,0.00028767,3]
[343740691,1732955433788,-500.0,0.00028767,3]
[343740692,1732955433799,-500.0,0.00028767,3]
[343740693,1732955433808,-510.887064,0.00028767,3]
[343740694,1732955433818,-503.84304586,0.00028767,3]
[343740695,1732955433828,-518.27043102,0.00028767,3]
[343740696,1732955433837,-334.58471995,0.00028767,3]
[343740697,1732955433846,-500.0,0.00028767,3]
[343740698,1732955433958,-500.0,0.00028767,3]
[343740699,1732955433967,-500.0,0.00028767,3]
[343740700,1732955433977,-500.0,0.00028767,3]
[343740701,1732955433986,-500.0,0.00028767,3]
[343740702,1732955433995,-500.0,0.00028767,3]
[343740703,1732955434005,-505.29993845,0.00028767,3]
[343740704,1732955434015,-500.0,0.00028767,3]
[343740705,1732955434025,-500.0,0.00028767,3]
[343740706,1732955434035,-500.0,0.00028767,3]
[343740707,1732955434044,-500.0,0.00028767,3]
[343740708,1732955434054,-500.0,0.00028767,3]
[343740709,1732955434064,-514.15131863,0.00028767,3]
[343740710,1732955434074,-500.0,0.00028767,3]
[343740711,1732955434084,-500.0,0.00028767,3]
[343740712,1732955434095,-500.0,0.00028767,3]
[343740713,1732955434105,-500.0,0.00028767,3]
[343740714,1732955434116,-500.0,0.00028767,3]
[343740715,1732955434126,-414.72535098,0.00028767,3]
[343740716,1732955434138,-442.94272762,0.00028767,3]
[343740717,1732955434149,-500.0,0.00028767,3]
[343740718,1732955434159,-500.0,0.00028767,3]
[343740719,1732955434169,-500.0,0.00028767,3]
[343740720,1732955434178,-500.0,0.00028767,3]
[343740721,1732955434188,-500.0,0.00028767,3]
[343740722,1732955434198,-500.0,0.00028767,3]
[343740723,1732955434207,-609.82181054,0.00028767,3]
[343740724,1732955434217,-151.0,0.00028767,7]
[343740725,1732955434226,-500.0,0.00028767,3]
[343740726,1732955434235,-500.0,0.00028767,3]
[343740727,1732955434244,-500.0,0.00028767,3]
[343740728,1732955434254,-500.0,0.00028767,3]
[343740729,1732955434264,-500.0,0.00028767,3]
[343740730,1732955434275,-500.0,0.00028767,3]
[343740731,1732955434284,-508.39948007,0.00028767,3]
[343740732,1732955434294,-500.0,0.00028767,3]
[343740733,1732955434304,-500.0,0.00028767,3]
[343740734,1732955434313,-500.0,0.00028767,3]
[343740735,1732955434323,-500.0,0.00028767,3]
[343740736,1732955434333,-500.0,0.00028767,3]
[343740737,1732955434342,-500.0,0.00028767,3]
[343740738,1732955434352,-500.0,0.00028767,3]
[343740739,1732955434362,-500.0,0.00028767,3]
[343740740,1732955434372,-500.0,0.00028767,3]
[343740741,1732955434382,-500.0,0.00028767,3]
[343740742,1732955434393,-500.0,0.00028767,3]
[343740743,1732955434403,-500.0,0.00028767,3]
[343740744,1732955434413,-202.00716905,0.00028767,3]
[343740745,1732955434423,-500.0,0.00028767,3]
[343740746,1732955434433,-500.0,0.00028767,3]
[343740747,1732955434443,-500.0,0.00028767,3]
[343740748,1732955434452,-500.0,0.00028767,3]
[343740749,1732955434462,-500.0,0.00028767,3]
[343740750,1732955434472,-500.0,0.00028767,3]
[343740751,1732955434482,-500.0,0.00028767,3]
[343740752,1732955434492,-500.0,0.00028767,3]
[343740753,1732955434502,-500.0,0.00028767,3]
[343740754,1732955434511,-500.0,0.00028767,3]
[343740755,1732955434521,-500.0,0.00028767,3]
[343740756,1732955434532,-500.0,0.00028767,3]
[343740757,1732955434547,-500.0,0.00028767,3]
[343740758,1732955434556,-500.0,0.00028767,3]
[343740759,1732955434566,-500.0,0.00028767,3]
[343740760,1732955434575,-500.0,0.00028767,3]
[343740761,1732955434586,-207.77164741,0.00028767,3]
[343740762,1732955434596,-151.0,0.00028767,2]
[343740763,1732955434605,-500.0,0.00028767,3]
[343740764,1732955434616,-500.0,0.00028767,3]
[343740765,1732955434625,-500.0,0.00028767,3]
[343740766,1732955434635,-500.0,0.00028767,3]
[343740767,1732955434646,-500.0,0.00028767,3]
[343740768,1732955434655,-500.0,0.00028767,3]
[343740769,1732955434665,-500.0,0.00028767,3]
[343740770,1732955434674,-500.0,0.00028767,3]
[343740771,1732955434683,-500.0,0.00028767,3]
[343740772,1732955434693,-500.0,0.00028767,3]
[343740773,1732955434713,-244.95483174,0.00028767,3]
[343740774,1732955434725,-445.22859418,0.00028767,3]
[343740775,1732955434736,-500.0,0.00028767,3]
[343740776,1732955434746,-500.0,0.00028767,3]
[343740777,1732955434756,-500.0,0.00028767,3]
[343740778,1732955434766,-500.0,0.00028767,3]
[343740779,1732955434777,-500.0,0.00028767,3]
[343740780,1732955434787,-500.0,0.00028767,3]
[343740781,1732955434797,-500.0,0.00028767,3]
[343740782,1732955434808,-500.0,0.00028767,3]
[343740783,1732955434819,-500.0,0.00028767,3]
[343740784,1732955434829,-500.0,0.00028767,3]
[343740785,1732955434839,-500.0,0.00028767,3]
[343740786,1732955434849,-500.0,0.00028767,3]
[343740787,1732955434859,-500.0,0.00028767,3]
[343740788,1732955434870,-157.45145118,0.00028767,3]
[343740789,1732955434880,-500.0,0.00028767,3]
[343740790,1732955434891,-500.0,0.00028767,3]
[343740791,1732955434901,-500.0,0.00028767,3]
[343740792,1732955434911,-500.0,0.00028767,3]
[343740793,1732955434921,-500.0,0.00028767,3]
[343740794,1732955434931,-500.0,0.00028767,3]
[343740795,1732955434941,-500.0,0.00028767,3]
[343740796,1732955434951,-356.22668136,0.00028767,3]
[343740797,1732955434961,-500.0,0.00028767,3]
[343740798,1732955434971,-500.0,0.00028767,3]
[343740799,1732955434982,-500.0,0.00028767,3]
[343740800,1732955434991,-500.0,0.00028767,3]
[343740801,1732955435001,-500.0,0.00028767,3]
[343740802,1732955435011,-166.97925073,0.00028767,3]
[343740803,1732955435021,-500.0,0.00028767,3]
[343740804,1732955435031,-500.0,0.00028767,3]
[343740805,1732955435041,-500.0,0.00028767,3]
[343740806,1732955435051,-500.0,0.00028767,3]
[343740807,1732955435061,-500.0,0.00028767,3]
[343740808,1732955435071,-500.0,0.00028767,3]
[343740809,1732955435080,-500.0,0.00028767,3]
[343740810,1732955435090,-500.0,0.00028767,3]
[343740811,1732955435100,-500.0,0.00028767,3]
[343740812,1732955435110,-500.0,0.00028767,3]
[343740813,1732955435120,-516.17098273,0.00028767,3]
[343740814,1732955435130,-500.0,0.00028767,3]
[343740815,1732955435140,-500.0,0.00028767,3]
[343740816,1732955435150,-500.0,0.00028767,3]
[343740817,1732955435160,-270.09380513,0.00028767,3]
[343740818,1732955435170,-500.0,0.00028767,3]
[343740819,1732955435181,-500.0,0.00028767,3]
[343740820,1732955435191,-500.0,0.00028767,3]
[343740821,1732955435201,-500.0,0.00028767,3]
[343740822,1732955435211,-500.0,0.00028767,3]
[343740823,1732955435221,-500.0,0.00028767,3]
[343740824,1732955435230,-500.0,0.00028767,3]
[343740825,1732955435240,-307.17486539,0.00028767,3]
[343740826,1732955435250,-500.0,0.00028767,3]
[343740827,1732955435260,-500.0,0.00028767,3]
[343740828,1732955435270,-541.49911944,0.00028767,3]
[343740829,1732955435280,-507.10316814,0.00028767,3]
[343740830,1732955435290,-500.0,0.00028767,3]
[343740831,1732955435301,-500.0,0.00028767,3]
[343740832,1732955435311,-500.0,0.00028767,3]
[343740833,1732955435321,-500.0,0.00028767,3]
[343740834,1732955435330,-500.0,0.00028767,3]
[343740835,1732955435340,-500.0,0.00028767,3]
[343740836,1732955435350,-500.0,0.00028767,3]
[343740837,1732955435360,-500.0,0.00028767,3]
[343740838,1732955435370,-467.56713451,0.00028767,3]
[343740839,1732955435379,-500.0,0.00028767,3]
[343740840,1732955435390,-503.68026087,0.00028767,3]
[343740841,1732955435400,-500.0,0.00028767,3]
[343740842,1732955435410,-500.0,0.00028767,3]
[343740843,1732955435420,-242.20327652,0.00028767,3]
[343740844,1732955435430,-510.69278094,0.00028767,3]
[343740845,1732955435440,-500.0,0.00028767,3]
[343740846,1732955435450,-500.0,0.00028767,3]
[343740847,1732955435460,-500.0,0.00028767,3]
[343740848,1732955435470,-500.0,0.00028767,3]
[343740849,1732955435479,-500.0,0.00028767,3]
[343740850,1732955435489,-500.0,0.00028767,3]
[343740851,1732955435498,-500.0,0.00028767,3]
[343740852,1732955435508,-500.0,0.00028767,3]
[343740853,1732955435518,-298.62707869,0.00028767,3]
[343740854,1732955435528,-500.0,0.00028767,3]
[343740855,1732955435541,-500.0,0.00028767,3]
[343740856,1732955435551,-500.0,0.00028767,3]
[343740857,1732955435560,-500.0,0.00028767,3]
[343740858,1732955435571,-500.0,0.00028767,3]
[343740859,1732955435580,-500.0,0.00028767,3]
[343740860,1732955435590,-500.0,0.00028767,3]
[343740861,1732955435599,-500.0,0.00028767,3]
[343740862,1732955435611,-500.0,0.00028767,3]
[343740863,1732955435621,-500.0,0.00028767,3]
[343740864,1732955435630,-500.0,0.00028767,3]
[343740865,1732955435641,-500.0,0.00028767,3]
[343740866,1732955435651,-500.0,0.00028767,3]
[343740867,1732955435660,-500.0,0.00028767,3]
[343740868,1732955435670,-500.0,0.00028767,3]
[343740869,1732955435679,-500.0,0.00028767,3]
[343740870,1732955435690,-500.0,0.00028767,3]
[343740871,1732955435700,-500.0,0.00028767,3]
[343740872,1732955435710,-500.0,0.00028767,3]
[343740873,1732955435719,-500.0,0.00028767,3]
[343740874,1732955435729,-500.0,0.00028767,3]
[343740875,1732955435739,-272.39536189,0.00028767,3]
[343740876,1732955435749,-500.0,0.00028767,3]
[343740877,1732955435759,-500.0,0.00028767,3]
[343740878,1732955435769,-500.0,0.00028767,3]
[343740879,1732955435778,-500.0,0.00028767,3]
[343740880,1732955435788,-535.78405554,0.00028767,3]
[343740881,1732955435797,-525.66486405,0.00028767,3]
[343740882,1732955435807,-500.0,0.00028767,3]
[343740883,1732955435817,-552.15269479,0.00028767,3]
[343740884,1732955435827,-500.0,0.00028767,3]
[343740885,1732955435837,-500.0,0.00028767,3]
[343740886,1732955435847,-500.0,0.00028767,3]
[343740887,1732955435963,-500.0,0.00028767,3]
[343740888,1732955435973,-500.0,0.00028767,3]
[343740889,1732955435983,-500.0,0.00028767,3]
[343740890,1732955435992,-500.0,0.00028767,3]
[343740891,1732955436001,-504.73262058,0.00028767,3]
[343740892,1732955436010,-500.0,0.00028767,3]
[343740893,1732955436019,-531.06011476,0.00028767,3]
[343740894,1732955436029,-337.28360133,0.00028767,3]
[343740895,1732955436038,-508.00303021,0.00028767,3]
[343740896,1732955436047,-500.0,0.00028767,3]
[343740897,1732955436056,-500.0,0.00028767,3]
[343740898,1732955436065,-239.09460502,0.00028767,3]
[343740899,1732955436075,-500.0,0.00028767,3]
[343740900,1732955436084,-500.0,0.00028767,3]
[343740901,1732955436094,-200.32456884,0.00028767,3]
[343740902,1732955436103,-506.23405092,0.00028767,3]
[343740903,1732955436112,-562.11,0.00028767,3]
[343740904,1732955436122,-562.11,0.00028767,3]
[343740905,1732955436132,-500.0,0.00028767,3]
[343740906,1732955436142,-562.11,0.00028767,3]
[343740907,1732955436152,-500.0,0.00028767,3]
[343740908,1732955436161,-562.11,0.00028767,3]
[343740909,1732955436171,-500.0,0.00028767,3]
[343740910,1732955436181,-562.11,0.00028767,3]
[343740911,1732955436190,-500.0,0.00028767,3]
[343740912,1732955436200,-562.11,0.00028767,3]
[343740913,1732955436211,-500.0,0.00028767,3]
[343740914,1732955436221,-562.11,0.00028767,3]
[343740915,1732955436231,-500.0,0.00028767,3]
[343740916,1732955436240,-562.11,0.00028767,3]
[343740917,1732955436250,-500.0,0.00028767,3]
[343740918,1732955436261,-562.11,0.00028767,3]
[343740919,1732955436271,-500.0,0.00028767,3]
[343740920,1732955436281,-500.0,0.00028767,3]
[343740921,1732955436290,-562.11,0.00028767,3]
[343740922,1732955436300,-500.0,0.00028767,3]
[343740923,1732955436310,-562.11,0.00028767,3]
[343740924,1732955436319,-512.78760422,0.00028767,3]
[343740925,1732955436328,-500.0,0.00028767,3]
[343740926,1732955436338,-500.0,0.00028767,3]
[343740927,1732955436347,-522.32210149,0.00028767,3]
[343740928,1732955436357,-562.11,0.00028767,3]
[343740929,1732955436366,-556.77700051,0.00028767,3]
[343740930,1732955436376,-562.11,0.00028767,3]
[343740931,1732955436386,-562.11,0.00028767,3]
[343740932,1732955436399,-562.11,0.00028767,3]
[343740933,1732955436410,-562.11,0.00028767,3]
[343740934,1732955436419,-562.11,0.00028767,3]
[343740935,1732955436429,-562.11,0.00028767,3]
[343740936,1732955436438,-562.11,0.00028767,3]
[343740937,1732955436447,-562.11,0.00028767,3]
[343740938,1732955436457,-562.11,0.00028767,3]
[343740939,1732955436467,-562.11,0.00028767,3]
[343740940,1732955436477,-562.11,0.00028767,3]
[343740941,1732955436486,-562.3010985,0.00028767,3]
[343740942,1732955436495,-200.29275304,0.00028767,3]
[343740943,1732955436504,-500.0,0.00028767,3]